bitfinex/quotes_SOLUSD_20250718
["timestamp","ask_amount","ask_price","bid_price","bid_amount"]
[1752848117638,41.26,181.1,181.07,11.20937097]
[1752848117809,41.26,181.1,181.03,6.27634093]
[1752848117810,10.0,181.07,181.03,5.7239463]
[1752848118005,32.57439278,181.06,181.03,5.7239463]
[1752848118530,16.78468397,181.05,181.03,0.2]
[1752848118838,69.83844772,181.04,181.03,0.2]
[1752848119003,59.33907675,181.04,181.03,0.2]
[1752848119210,64.86271793,181.04,181.03,0.2]
[1752848119434,76.0720889,181.04,181.03,0.2]
[1752848120439,64.86271793,181.04,181.03,0.2]
[1752848120652,76.0720889,181.04,181.03,0.2]
[1752848122736,39.30844772,181.04,181.03,0.2]
[1752848122933,10.60439278,181.04,181.03,0.2]
[1752848123236,41.26,181.04,181.03,5.7239463]
[1752848123536,10.0,181.04,181.03,16.93331727]
[1752848123705,41.26,181.04,181.03,0.2]
[1752848124219,76.0920889,181.04,181.03,0.2]
[1752848124438,76.0920889,181.04,180.95,26.04]
[1752848124439,10.0,181.01,180.95,5.52611792]
[1752848124615,69.89844772,181.0,180.95,11.20937097]
[1752848124808,70.60844772,181.0,180.95,11.20937097]
[1752848125024,10.0,180.99,180.94,31.52647269]
[1752848125225,41.88439278,180.98,180.94,37.20937097]
[1752848125545,42.59439278,180.98,180.94,42.7360455]
[1752848125734,41.88439278,180.98,180.96,11.20937097]
[1752848125920,31.28,180.98,180.96,0.24]
[1752848126118,41.28,180.98,180.97,11.20937097]
[1752848126438,31.28,180.98,180.94,31.52667453]
[1752848126635,41.28,180.98,180.97,11.20937097]
[1752848127136,10.0,180.97,180.92,5.52723264]
[1752848127432,10.0,180.97,180.91,65.20875586]
[1752848127433,49.39907675,180.96,180.91,55.94571656]
[1752848127608,49.39907675,180.96,180.92,11.20937097]
[1752848127807,59.39907675,180.96,180.92,11.20937097]
[1752848128423,58.68907675,180.96,180.95,0.03]
[1752848128613,41.3,180.96,180.95,0.03]
[1752848128937,31.32,180.96,180.95,11.23937097]
[1752848129327,31.32,180.96,180.95,0.03]
[1752848129637,31.32,180.96,180.95,11.23937097]
[1752848129638,3.58654227,180.96,180.95,11.23937097]
[1752848129843,10.0,181.02,180.98,26.0]
[1752848130036,31.3,181.03,181.01,11.20937097]
[1752848130215,31.3,181.03,181.02,11.20937097]
[1752848130413,16.78468397,181.06,181.02,11.20937097]
[1752848130414,10.0,181.09,181.02,11.44937097]
[1752848130614,0.60439278,181.1,181.08,11.20937097]
[1752848130814,31.38,181.1,181.09,11.20937097]
[1752848131038,10.60439278,181.11,181.03,0.24]
[1752848131039,11.31439278,181.13,181.03,0.55239463]
[1752848131208,41.36,181.11,181.1,11.20937097]
[1752848131414,10.0,181.1,181.06,5.52303103]
[1752848131613,31.36,181.11,181.06,5.52303103]
[1752848131848,10.60439278,181.1,181.06,5.52303103]
[1752848132042,10.60439278,181.1,181.07,11.20937097]
[1752848132043,31.36,181.09,181.07,11.20937097]
[1752848132349,28.09907675,181.08,181.05,11.20937097]
[1752848132645,31.36,181.07,181.02,5.76425146]
[1752848132818,31.36,181.07,181.02,19.33488011]
[1752848133020,31.36,181.07,181.04,26.0]
[1752848133226,31.34,181.09,181.06,5.52303103]
[1752848133420,41.34,181.09,181.06,5.52303103]
[1752848133638,41.34,181.09,181.08,11.20937097]
[1752848134427,42.05,181.09,181.06,11.20937097]
[1752848134827,42.05,181.09,181.07,11.20937097]
[1752848134828,41.34,181.09,181.07,11.20937097]
[1752848135024,12.52376375,181.08,180.99,16.24371894]
[1752848135225,10.0,181.04,180.97,5.52577775]
[1752848135432,37.55273982,181.07,180.97,5.52577775]
[1752848135433,10.0,181.02,181.0,11.20937097]
[1752848135663,31.32,181.01,181.0,11.20937097]
[1752848136145,31.3,181.03,181.0,37.20937097]
[1752848136326,31.34,181.04,181.01,0.24]
[1752848136520,0.60439278,181.03,181.0,26.0]
[1752848136874,10.0,181.05,181.01,11.20937097]
[1752848137028,41.38,181.04,181.03,17.23733335]
[1752848137353,31.4,181.04,181.03,17.23733335]
[1752848137567,31.4,181.04,181.03,22.76127965]
[1752848137857,10.0,181.06,181.03,23.00127965]
[1752848137858,31.4,181.05,181.03,23.00127965]
[1752848138020,31.4,181.05,181.04,17.23733335]
[1752848138223,10.0,181.09,181.04,17.23733335]
[1752848138445,41.36,181.08,181.04,0.24]
[1752848138650,0.06,181.11,181.07,17.23733335]
[1752848138842,41.36,181.1,181.09,17.23733335]
[1752848139033,31.36,181.1,181.09,17.23733335]
[1752848139441,41.36,181.1,181.09,17.23733335]
[1752848139854,31.36,181.1,181.09,17.23733335]
[1752848140057,41.36,181.1,181.07,5.52264916]
[1752848140221,32.07,181.1,181.07,22.75998251]
[1752848140546,11.31439278,181.09,181.06,17.23733335]
[1752848140861,32.03,181.08,181.06,17.23733335]
[1752848141029,31.32,181.08,181.07,17.23733335]
[1752848141231,31.32,181.08,181.07,17.47733335]
[1752848141562,31.32,181.08,181.07,5.76272601]
[1752848141855,31.32,181.08,181.06,17.23733335]
[1752848142377,31.32,181.08,181.07,17.23733335]
[1752848143092,0.66439278,181.11,181.07,17.23733335]
[1752848143093,0.06,181.11,181.07,17.23733335]
[1752848143358,41.34,181.11,181.1,17.23733335]
[1752848143530,76.6764101,181.11,181.07,5.52272601]
[1752848143724,49.43907675,181.11,181.07,22.76005936]
[1752848144034,31.26,181.1,181.07,5.52272601]
[1752848144233,31.26,181.1,181.09,17.23733335]
[1752848144438,31.26,181.1,181.07,5.52272601]
[1752848144869,32.57439278,181.1,181.07,26.0]
[1752848145173,0.71,181.09,181.07,43.23733335]
[1752848145466,31.26,181.1,181.08,17.23733335]
[1752848145871,17.84172613,181.09,181.04,43.23733335]
[1752848146038,48.02468397,181.08,181.04,43.23733335]
[1752848146365,1.28439278,181.07,181.04,17.23733335]
[1752848146552,31.22,181.06,181.04,17.23733335]
[1752848148074,31.22,181.06,181.02,26.0]
[1752848148369,41.16,181.06,181.04,17.23733335]
[1752848148754,41.16,181.06,181.02,31.764161]
[1752848148755,31.84,181.06,181.03,17.23733335]
[1752848149057,41.84,181.06,181.02,48.76149435]
[1752848149368,1.28439278,181.05,181.02,31.524161]
[1752848149571,31.14,181.04,181.02,48.76149435]
[1752848150155,31.14,181.04,181.03,17.23733335]
[1752848150358,41.14,181.06,181.03,17.23733335]
[1752848150614,41.14,181.06,181.04,17.23733335]
[1752848150780,41.14,181.06,181.02,31.764161]
[1752848151070,41.14,181.06,181.04,17.23733335]
[1752848151445,41.14,181.06,181.02,31.524161]
[1752848151662,41.14,181.06,181.04,17.23733335]
[1752848151865,41.14,181.06,181.02,31.524161]
[1752848152052,31.14,181.06,181.04,17.23733335]
[1752848152255,31.14,181.06,181.05,17.23733335]
[1752848152768,10.66439278,181.11,181.05,17.23733335]
[1752848152954,31.08,181.1,181.05,26.24]
[1752848153146,0.06,181.11,181.09,17.23733335]
[1752848153348,10.06,181.11,181.1,17.23733335]
[1752848154377,10.06,181.11,181.1,22.7591445]
[1752848154580,0.06,181.11,181.1,22.7591445]
[1752848154784,10.06,181.11,181.1,22.7591445]
[1752848154955,0.06,181.11,181.1,22.7591445]
[1752848155858,16.78468397,181.1,181.04,0.03]
[1752848156175,31.02,181.09,181.07,17.23733335]
[1752848156375,31.02,181.09,181.08,17.23733335]
[1752848156562,41.02,181.09,181.08,17.23733335]
[1752848156876,41.7,181.09,181.04,26.03]
[1752848157078,12.55856712,181.08,181.04,0.03]
[1752848157260,41.02,181.07,181.04,0.03]
[1752848157467,0.60439278,181.06,181.04,0.03]
[1752848157777,31.02,181.05,181.04,0.03]
[1752848158281,32.30439278,181.05,181.04,0.03]
[1752848158582,42.30439278,181.05,181.04,0.03]
[1752848159280,41.7,181.05,181.04,0.03]
[1752848159472,41.02,181.05,181.04,0.03]
[1752848159980,31.02,181.05,181.04,11.30417434]
[1752848160169,31.02,181.05,181.04,0.03]
[1752848160367,41.7,181.05,181.04,0.03]
[1752848160579,41.7,181.05,181.0,0.03]
[1752848160580,10.0,181.03,181.0,0.03]
[1752848160776,38.05885831,181.01,181.0,0.03]
[1752848160974,10.0,180.99,180.96,0.03]
[1752848161170,38.05885831,180.97,180.96,0.03]
[1752848161483,39.55985831,180.97,180.96,0.03]
[1752848161655,16.78468397,180.95,180.92,0.03]
[1752848161856,38.05885831,180.93,180.92,0.03]
[1752848162189,74.6058577,180.93,180.92,0.03]
[1752848162477,74.6058577,180.93,180.88,0.03]
[1752848162478,26.78468397,180.89,180.88,0.03]
[1752848162683,57.80468397,180.89,180.88,0.03]
[1752848162984,31.02,180.89,180.88,11.30417434]
[1752848163184,41.02,180.89,180.88,0.03]
[1752848163384,48.48468397,180.89,180.88,0.03]
[1752848163606,58.48468397,180.89,180.88,0.03]
[1752848163786,69.75885831,180.89,180.88,0.03]
[1752848164202,163.48707988,180.89,180.88,0.03]
[1752848164498,169.93937988,180.89,180.88,0.03]
[1752848164660,26.78468397,180.86,180.77,5.53182832]
[1752848164868,21.27417434,180.82,180.77,16.80600266]
[1752848165070,41.62439278,180.81,180.78,11.27417434]
[1752848165271,31.62439278,180.81,180.78,11.27417434]
[1752848165477,41.62439278,180.81,180.76,5.53218797]
[1752848165795,31.62439278,180.81,180.78,11.27417434]
[1752848166164,41.62439278,180.81,180.78,16.8057116]
[1752848166483,41.02,180.81,180.78,16.8057116]
[1752848166984,31.02,180.81,180.78,22.81480059]
[1752848167183,41.02,180.81,180.78,22.81480059]
[1752848167370,41.02,180.81,180.78,5.53153726]
[1752848167568,31.02,180.81,180.8,17.28326333]
[1752848167792,41.02,180.81,180.8,17.28326333]
[1752848168000,58.98326333,180.81,180.76,5.53194171]
[1752848168169,1.28439278,180.8,180.76,17.28326333]
[1752848168487,31.06,180.79,180.76,17.28326333]
[1752848168790,31.06,180.79,180.78,17.28326333]
[1752848168985,31.06,180.81,180.78,17.90326333]
[1752848169282,31.06,180.81,180.79,0.62]
[1752848169492,41.06,180.81,180.76,0.62]
[1752848169671,0.60439278,180.8,180.79,17.28326333]
[1752848169993,42.34439278,180.81,180.79,17.28326333]
[1752848170191,42.34439278,180.81,180.78,26.0]
[1752848170371,42.34439278,180.81,180.79,17.28326333]
[1752848170574,41.06,180.81,180.79,17.28326333]
[1752848170780,10.0,180.83,180.8,17.28326333]
[1752848171081,31.1,180.82,180.78,26.62]
[1752848171263,31.1,180.82,180.79,0.62]
[1752848171464,41.1,180.82,180.8,0.62]
[1752848171673,41.1,180.82,180.78,26.0]
[1752848172190,41.1,180.82,180.81,22.81393088]
[1752848172566,31.1,180.82,180.81,22.81393088]
[1752848173275,41.1,180.82,180.81,5.53066755]
[1752848173469,41.1,180.82,180.81,22.81393088]
[1752848173791,31.1,180.82,180.81,22.81393088]
[1752848174275,41.1,180.82,180.81,22.81393088]
[1752848174475,31.1,180.82,180.81,5.53066755]
[1752848174677,31.1,180.82,180.79,5.53127938]
[1752848174868,31.1,180.82,180.8,17.28326333]
[1752848175073,41.1,180.82,180.8,17.28326333]
[1752848175572,31.1,180.82,180.8,17.28326333]
[1752848175774,41.1,180.82,180.81,17.28326333]
[1752848176392,31.1,180.82,180.81,22.81393088]
[1752848176794,41.1,180.82,180.79,5.53127938]
[1752848177098,41.77,180.82,180.78,31.53152477]
[1752848177287,31.77,180.82,180.79,17.28326333]
[1752848177487,10.0,180.81,180.79,17.28326333]
[1752848177668,16.78468397,180.79,180.73,5.53311569]
[1752848177868,42.31439278,180.78,180.74,17.28326333]
[1752848178069,34.0679473,180.75,180.71,40.39003082]
[1752848178291,10.0,180.73,180.71,40.39003082]
[1752848178480,49.59765611,180.74,180.71,40.39003082]
[1752848178481,41.04,180.72,180.71,40.39003082]
[1752848178904,31.04,180.72,180.71,5.56372807]
[1752848179077,10.0,180.75,180.71,22.8469914]
[1752848179279,10.60439278,180.78,180.74,17.28326333]
[1752848179479,41.04,180.77,180.71,19.39804825]
[1752848179695,10.0,180.75,180.71,19.39804825]
[1752848179904,41.64439278,180.75,180.71,5.56372807]
[1752848180195,10.0,180.73,180.71,0.03]
[1752848180401,41.04,180.72,180.71,0.03]
[1752848180636,41.71,180.72,180.71,0.03]
[1752848180901,58.49468397,180.72,180.71,0.03]
[1752848181067,75.7779473,180.72,180.71,0.03]
[1752848181270,76.38234008,180.72,180.71,0.03]
[1752848181775,10.0,180.65,180.63,40.02336097]
[1752848181985,31.83,180.64,180.63,40.02336097]
[1752848182197,41.83,180.64,180.63,40.02336097]
[1752848182495,41.83,180.64,180.56,14.49563173]
[1752848182496,10.0,180.63,180.57,5.53801849]
[1752848182697,41.18,180.62,180.6,17.28326333]
[1752848182889,31.18,180.62,180.6,17.28326333]
[1752848183080,41.78439278,180.62,180.59,17.28326333]
[1752848183282,17.45468397,180.61,180.57,5.53801849]
[1752848183483,31.86439278,180.6,180.57,5.53801849]
[1752848183790,31.86439278,180.6,180.59,17.28326333]
[1752848183791,31.26,180.6,180.59,17.28326333]
[1752848183986,31.26,180.6,180.59,43.28326333]
[1752848184296,31.26,180.6,180.59,31.53740517]
[1752848184513,31.26,180.6,180.59,48.8206685]
[1752848185018,31.26,180.6,180.59,31.53740517]
[1752848185392,0.60439278,180.62,180.59,48.8206685]
[1752848185709,31.28,180.63,180.61,17.28326333]
[1752848185895,41.88439278,180.63,180.62,17.28326333]
[1752848186077,16.78468397,180.62,180.6,17.28326333]
[1752848186280,16.78468397,180.62,180.59,31.53740517]
[1752848186281,32.55439278,180.61,180.59,48.8206685]
[1752848186476,10.0,180.65,180.6,17.28326333]
[1752848186729,31.3,180.65,180.64,17.28326333]
[1752848186881,31.3,180.65,180.61,0.65]
[1752848187209,31.3,180.65,180.62,26.0]
[1752848187384,41.97,180.65,180.59,19.38091809]
[1752848187587,41.97,180.65,180.59,31.53740517]
[1752848187588,11.27439278,180.64,180.59,31.53740517]
[1752848187806,10.0,180.64,180.59,45.38091809]
[1752848187996,41.90439278,180.63,180.59,31.53740517]
[1752848188199,10.0,180.62,180.59,31.53740517]
[1752848188509,31.3,180.61,180.6,5.53709856]
[1752848188678,31.97,180.61,180.59,26.0]
[1752848188882,31.97,180.61,180.59,48.8205408]
[1752848189081,31.3,180.61,180.59,42.8687783]
[1752848189301,31.3,180.61,180.6,11.33150083]
[1752848189900,31.42,180.63,180.6,11.33150083]
[1752848190215,10.0,180.62,180.59,45.38079039]
[1752848190384,31.42,180.63,180.59,31.53727747]
[1752848190584,10.67,180.62,180.59,31.53727747]
[1752848190896,32.73439278,180.61,180.59,11.33150083]
[1752848191102,41.46,180.61,180.6,11.33150083]
[1752848191300,31.46,180.61,180.57,19.38300202]
[1752848191610,42.13,180.61,180.57,5.53795578]
[1752848191813,11.33150083,180.59,180.52,0.2]
[1752848192115,10.0,180.55,180.53,5.53924555]
[1752848192313,32.24439278,180.54,180.52,0.2]
[1752848192514,10.0,180.53,180.52,0.2]
[1752848192687,10.67,180.53,180.52,0.2]
[1752848193006,11.27439278,180.53,180.52,0.2]
[1752848193394,27.38907675,180.53,180.52,0.2]
[1752848193599,45.39683979,180.53,180.52,0.2]
[1752848193815,10.0,180.45,180.36,6.26446662]
[1752848194120,33.09,180.44,180.37,0.55441592]
[1752848194323,33.09,180.44,180.38,5.54385186]
[1752848194621,0.60439278,180.45,180.39,0.72]
[1752848194910,10.60439278,180.45,180.43,17.33776304]
[1752848195094,0.60439278,180.45,180.44,17.33776304]
[1752848195304,33.0,180.46,180.41,26.0]
[1752848195501,33.0,180.46,180.45,0.03]
[1752848195816,17.33776304,180.49,180.45,17.36776304]
[1752848195817,26.78468397,180.49,180.45,17.36776304]
[1752848195988,17.38907675,180.49,180.45,0.75]
[1752848196188,0.60439278,180.49,180.48,17.33776304]
[1752848196390,0.60439278,180.53,180.5,31.5401662]
[1752848196623,18.22166536,180.54,180.5,31.5401662]
[1752848197214,43.70439278,180.53,180.51,17.33776304]
[1752848197516,43.70439278,180.53,180.52,17.33776304]
[1752848197698,43.1,180.53,180.52,17.33776304]
[1752848197896,43.1,180.53,180.5,31.5401662]
[1752848198103,33.77,180.53,180.5,31.5401662]
[1752848198295,33.77,180.53,180.51,5.53985928]
[1752848198296,0.60439278,180.52,180.51,5.53985928]
[1752848198500,18.05907675,180.52,180.48,5.54078014]
[1752848198693,43.70439278,180.53,180.48,31.54078014]
[1752848198893,44.12244701,180.51,180.46,5.54139421]
[1752848199192,44.41439278,180.5,180.48,17.33776304]
[1752848199592,44.41439278,180.5,180.46,19.39487974]
[1752848199794,34.41439278,180.5,180.46,19.39487974]
[1752848200089,33.14,180.5,180.49,17.33776304]
[1752848200305,43.14,180.5,180.49,17.33776304]
[1752848200592,33.14,180.5,180.46,19.39487974]
[1752848201118,0.67,180.49,180.46,19.39487974]
[1752848201326,43.14,180.5,180.46,19.39487974]
[1752848201695,10.0,180.53,180.47,0.72]
[1752848201905,33.2,180.52,180.47,0.72]
[1752848202225,28.05907675,180.51,180.46,19.39487974]
[1752848202729,28.05907675,180.51,180.5,17.33776304]
[1752848203029,10.0,180.51,180.5,17.33776304]
[1752848203320,10.0,180.48,180.46,5.54139421]
[1752848203520,43.86439278,180.47,180.46,5.54139421]
[1752848203713,10.0,180.47,180.46,5.54139421]
[1752848203908,10.0,180.49,180.46,23.59915725]
[1752848204109,1.27439278,180.53,180.46,23.59915725]
[1752848204110,43.32,180.52,180.49,26.0]
[1752848204312,43.32,180.52,180.51,17.33776304]
[1752848204497,43.99,180.52,180.5,5.5401662]
[1752848204697,1.27439278,180.51,180.5,5.5401662]
[1752848204918,0.60439278,180.51,180.5,5.5401662]
[1752848205224,16.78468397,180.5,180.46,31.54139421]
[1752848205398,34.59439278,180.49,180.47,17.33776304]
[1752848205598,34.59439278,180.49,180.46,31.54139421]
[1752848206128,16.78468397,180.47,180.45,0.03]
[1752848206326,0.60439278,180.46,180.45,17.36776304]
[1752848206638,44.62439278,180.46,180.45,0.03]
[1752848207101,34.62439278,180.46,180.45,0.03]
[1752848207307,44.62439278,180.46,180.45,0.03]
[1752848207499,33.32,180.46,180.45,17.36776304]
[1752848207926,43.32,180.46,180.45,0.03]
[1752848208129,43.32,180.46,180.41,39.88680495]
[1752848208130,26.78468397,180.45,180.41,0.03]
[1752848208305,44.12244701,180.43,180.41,0.03]
[1752848208504,60.70907675,180.42,180.41,0.03]
[1752848208722,61.40907675,180.42,180.41,0.03]
[1752848209229,84.28946255,180.42,180.41,0.03]
[1752848209433,61.40907675,180.42,180.41,0.03]
[1752848209727,78.74683979,180.42,180.41,0.03]
[1752848210028,78.74683979,180.42,180.33,5.54538539]
[1752848210029,16.78468397,180.41,180.33,5.54538539]
[1752848210215,10.0,180.35,180.33,22.88314843]
[1752848210525,33.4,180.34,180.3,13.8652842]
[1752848210701,33.4,180.34,180.32,16.33776304]
[1752848210702,10.60439278,180.33,180.32,16.33776304]
[1752848210899,10.0,180.33,180.3,13.8652842]
[1752848211118,10.0,180.33,180.32,17.33776304]
[1752848211303,33.4,180.34,180.32,17.33776304]
[1752848211698,10.60439278,180.33,180.32,17.33776304]
[1752848211903,0.60439278,180.33,180.32,17.33776304]
[1752848212124,10.60439278,180.33,180.32,17.33776304]
[1752848212314,10.60439278,180.33,180.3,17.33776304]
[1752848212315,10.0,180.31,180.3,17.33776304]
[1752848212502,10.0,180.3,180.26,13.86827915]
[1752848212700,10.60439278,180.3,180.29,17.33776304]
[1752848212907,10.60439278,180.3,180.26,13.86827915]
[1752848213137,10.60439278,180.3,180.29,17.33776304]
[1752848213632,10.60439278,180.3,180.26,14.54827915]
[1752848213828,33.4,180.29,180.25,5.5478502]
[1752848214033,10.0,180.27,180.25,22.88561324]
[1752848214213,43.98439278,180.26,180.25,22.88561324]
[1752848214924,10.0,180.24,180.23,5.54817514]
[1752848215126,10.0,180.24,180.19,13.87387847]
[1752848215127,10.0,180.22,180.16,0.68]
[1752848215310,17.33776304,180.2,180.14,5.55123792]
[1752848215513,10.0,180.16,180.15,17.33776304]
[1752848215720,43.34,180.16,180.14,5.55123792]
[1752848215931,33.34,180.16,180.14,5.55123792]
[1752848216111,43.94439278,180.16,180.14,5.55123792]
[1752848216313,10.0,180.15,180.14,5.55123792]
[1752848216512,10.0,180.15,180.14,22.38900096]
[1752848217233,10.60439278,180.15,180.1,5.55247084]
[1752848217436,33.32,180.14,180.13,17.33776304]
[1752848217740,10.0,180.13,180.1,5.55247084]
[1752848217936,10.0,180.13,180.1,6.23247084]
[1752848218238,10.0,180.11,180.1,5.55247084]
[1752848218425,10.0,180.11,180.1,22.89023388]
[1752848218609,10.0,180.11,180.1,5.55247084]
[1752848218814,33.32,180.12,180.1,5.55247084]
[1752848218815,43.32,180.12,180.1,17.33776304]
[1752848219135,43.32,180.12,180.06,5.55370432]
[1752848219434,10.0,180.07,180.04,17.33776304]
[1752848219646,10.0,180.05,180.01,5.55524693]
[1752848219825,17.33776304,180.02,179.99,5.55584532]
[1752848220146,10.0,179.96,179.89,0.68]
[1752848220314,10.0,179.95,179.89,2.89096727]
[1752848220517,10.0,179.95,179.79,16.675931]
[1752848220518,10.0,179.98,179.94,17.33776304]
[1752848220737,0.60439278,179.97,179.95,0.68]
[1752848221037,17.33776304,180.02,179.96,18.01776304]
[1752848221038,0.60439278,179.99,179.96,18.01776304]
[1752848221240,10.0,180.02,179.98,17.33776304]
[1752848221241,0.60439278,180.01,179.98,17.33776304]
[1752848221542,43.58,180.08,180.0,43.33776304]
[1752848221719,16.78468397,180.07,180.03,26.0]
[1752848221913,60.38468397,180.12,180.04,0.68]
[1752848222116,10.0,180.02,179.98,0.68]
[1752848222330,10.0,180.05,180.01,17.33776304]
[1752848222522,10.0,180.01,179.94,0.68]
[1752848222844,10.0,179.99,179.95,5.55709919]
[1752848223146,43.66,180.0,179.95,19.44984717]
[1752848223443,10.0,179.99,179.97,17.33776304]
[1752848223615,16.78468397,179.99,179.97,0.68]
[1752848223818,10.0,179.97,179.96,17.33776304]
[1752848224147,10.0,179.97,179.95,5.55709919]
[1752848224318,10.0,179.96,179.92,5.55802578]
[1752848224521,10.0,179.94,179.92,20.13309025]
[1752848224721,10.0,179.94,179.92,5.55802578]
[1752848224925,10.0,179.94,179.89,0.68]
[1752848224926,10.0,179.94,179.9,5.55864369]
[1752848225127,43.74,179.94,179.89,6.23886979]
[1752848225336,10.0,179.9,179.88,17.33776304]
[1752848225523,10.0,179.9,179.85,19.46066165]
[1752848225836,10.0,179.9,179.85,0.68]
[1752848226045,10.0,179.87,179.82,0.68]
[1752848226226,10.0,179.88,179.86,17.33776304]
[1752848226421,10.0,179.88,179.87,17.33776304]
[1752848226617,10.0,179.88,179.86,18.01776304]
[1752848226837,10.0,179.87,179.86,5.55977441]
[1752848227025,10.0,179.87,179.86,22.89753745]
[1752848227220,10.0,179.86,179.82,5.56111667]
[1752848227420,10.0,179.86,179.85,17.33776304]
[1752848227617,10.0,179.87,179.82,19.46390835]
[1752848227818,10.0,179.86,179.82,5.56111667]
[1752848228242,10.0,179.84,179.76,13.90731701]
[1752848228431,10.0,179.82,179.77,6.2426634]
[1752848228623,10.61,179.82,179.77,5.5626634]
[1752848228821,10.0,179.79,179.77,0.68]
[1752848229232,10.0,179.8,179.77,0.68]
[1752848229636,43.96,179.8,179.77,17.33776304]
[1752848229821,10.0,179.79,179.77,17.33776304]
[1752848230021,10.0,179.79,179.76,5.56297285]
[1752848230246,43.96,179.8,179.76,5.56297285]
[1752848230428,10.0,179.79,179.78,17.33776304]
[1752848230632,10.0,179.8,179.76,19.47040498]
[1752848230834,10.0,179.8,179.79,22.89954787]
[1752848231043,10.0,179.8,179.78,22.90000105]
[1752848231229,10.0,179.8,179.79,17.33776304]
[1752848231429,10.0,179.81,179.74,0.68]
[1752848231650,10.0,179.81,179.67,0.78]
[1752848231651,10.0,179.72,179.67,0.78]
[1752848232154,10.61,179.72,179.67,0.1]
[1752848232654,17.0754,179.72,179.67,0.1]
[1752848232833,16.4654,179.72,179.67,0.1]
[1752848233037,61.24468397,179.72,179.69,5.56512505]
[1752848233261,61.24468397,179.72,179.68,5.56535511]
[1752848233558,10.0,179.72,179.67,0.1]
[1752848233761,10.0,179.72,179.68,17.33776304]
[1752848233933,10.0,179.72,179.67,0.1]
[1752848234127,10.0,179.68,179.59,13.91995658]
[1752848234360,10.0,179.68,179.53,16.78468397]
[1752848234361,10.0,179.56,179.53,16.78468397]
[1752848234654,10.0,179.53,179.52,5.779307]
[1752848234846,16.1800997,179.53,179.52,2.88665863]
[1752848235163,10.0,179.42,179.36,34.52]
[1752848235355,10.0,179.42,179.35,0.68]
[1752848235356,10.0,179.46,179.41,17.33776304]
[1752848235536,10.0,179.45,179.37,5.5749139]
[1752848235732,10.0,179.47,179.39,0.69]
[1752848235937,10.0,179.41,179.36,0.69]
[1752848236253,10.0,179.35,179.31,0.69]
[1752848236432,10.0,179.35,179.32,0.69]
[1752848236631,16.78468397,179.42,179.29,34.54]
[1752848236632,0.5568859,179.34,179.33,0.69]
[1752848236847,10.5568859,179.39,179.33,0.69]
[1752848237158,10.0,179.41,179.33,6.26627793]
[1752848237353,0.5568859,179.4,179.34,0.69]
[1752848237541,0.5568859,179.44,179.39,17.33776304]
[1752848237742,0.5568859,179.44,179.4,0.69]
[1752848237945,0.5568859,179.46,179.41,0.69]
[1752848238144,0.5568859,179.46,179.45,17.33776304]
[1752848238470,0.5568859,179.47,179.45,17.33776304]
[1752848238642,0.5568859,179.5,179.46,18.02776304]
[1752848238848,10.5568859,179.5,179.47,0.69]
[1752848239032,10.5568859,179.5,179.41,5.57382531]
[1752848239361,10.0,179.3,179.27,0.03]
[1752848239660,10.0,179.33,179.27,0.03]
[1752848239842,10.0,179.31,179.27,0.03]
[1752848240253,0.9,179.49,179.27,0.03]
[1752848240254,10.0,179.33,179.27,0.03]
[1752848240456,10.0,179.34,179.29,5.57755591]
[1752848240636,10.5568859,179.39,179.29,5.57755591]
[1752848240835,0.7,179.43,179.38,17.33776304]
[1752848240836,0.5568859,179.43,179.38,17.33776304]
[1752848241045,0.5568859,179.46,179.42,17.33776304]